bitfinex/quotes_ETHUSD_20250430
["timestamp","ask_amount","ask_price","bid_price","bid_amount"]
[1746022407824,1.9939606,1756.4,1755.4,6.758]
[1746022407825,10.68754835,1756.4,1755.4,6.758]
[1746022408071,1.9939606,1756.4,1755.4,6.758]
[1746022408273,1.9939606,1756.4,1755.5,0.7327415]
[1746022408772,2.41911123,1756.4,1755.5,0.7327415]
[1746022409062,5.41911123,1756.4,1755.5,0.7327415]
[1746022409261,3.83871123,1756.4,1755.5,0.7327415]
[1746022409474,0.83871123,1756.4,1755.5,0.7327415]
[1746022409684,0.31193999,1756.3,1755.5,0.7327415]
[1746022409975,0.31193999,1756.3,1755.6,0.55]
[1746022410132,0.31193999,1756.3,1755.7,0.05692628]
[1746022410687,0.4135606,1756.4,1755.7,0.05692628]
[1746022410839,0.4135606,1756.4,1755.8,0.55]
[1746022411046,0.4135606,1756.4,1755.9,6.74592283]
[1746022413871,0.4135606,1756.4,1756.0,0.55]
[1746022414071,0.4135606,1756.4,1756.1,0.05691816]
[1746022414589,0.4135606,1756.4,1756.0,0.72959228]
[1746022415040,0.4135606,1756.4,1756.0,0.7865234]
[1746022415240,0.4135606,1756.4,1756.0,0.72959228]
[1746022415474,0.4135606,1756.4,1756.0,0.78652051]
[1746022416884,0.4135606,1756.4,1756.0,0.72959228]
[1746022417558,0.4135606,1756.4,1755.7,18.841]
[1746022417559,3.0,1756.3,1755.7,18.841]
[1746022417758,1.5759,1756.2,1755.7,25.528]
[1746022418366,0.42233025,1756.2,1755.7,25.528]
[1746022418685,4.9894606,1756.4,1755.7,25.528]
[1746022419059,0.31203418,1756.3,1755.7,25.528]
[1746022419251,0.31203418,1756.3,1755.8,2.5528]
[1746022419451,0.31203418,1756.3,1755.9,0.05693161]
[1746022419887,0.31203418,1756.3,1755.8,2.5528]
[1746022420193,0.4135606,1756.4,1755.8,2.5528]
[1746022420358,0.4135606,1756.4,1755.8,2.60973109]
[1746022421265,0.4135606,1756.4,1755.8,2.5528]
[1746022421662,4.5492,1756.3,1755.8,2.5528]
[1746022421891,0.4135606,1756.4,1755.8,2.5528]
[1746022422503,0.4135606,1756.4,1755.8,2.60973692]
[1746022422672,0.4135606,1756.4,1755.8,2.5528]
[1746022424102,0.4135606,1756.4,1755.9,0.05693481]
[1746022424265,0.4135606,1756.4,1755.9,0.05693477]
[1746022424603,0.4135606,1756.4,1755.8,2.5528]
[1746022424808,0.4135606,1756.4,1755.9,0.05693482]
[1746022424962,0.4135606,1756.4,1755.8,2.60973482]
[1746022425164,0.4135606,1756.4,1755.9,0.55]
[1746022425375,0.4135606,1756.4,1756.0,0.05691556]
[1746022426495,0.4135606,1756.4,1755.9,0.37289592]
[1746022427488,0.4135606,1756.4,1755.9,0.92289592]
[1746022428296,0.4135606,1756.4,1756.0,0.55]
[1746022428499,0.4135606,1756.4,1756.1,0.05691781]
[1746022428690,0.4135606,1756.4,1756.2,7.236]
[1746022428910,0.4135606,1756.4,1756.3,0.7236]
[1746022429318,0.4135606,1756.4,1756.3,0.78051023]
[1746022429533,0.4135606,1756.4,1756.3,1.33051023]
[1746022429916,0.4135606,1756.4,1756.3,0.78051023]
[1746022430923,0.4135606,1756.4,1756.3,0.7236]
[1746022431127,0.4135606,1756.4,1756.3,1.2736]
[1746022431325,0.4135606,1756.4,1756.3,0.7236]
[1746022432001,6.31398977,1757.0,1756.2,0.05691372]
[1746022432198,3.0,1756.2,1755.4,6.686]
[1746022432425,4.635,1756.6,1755.5,0.72554872]
[1746022432634,1.635,1756.6,1755.5,0.72554872]
[1746022432838,6.31398977,1756.5,1755.5,0.72554872]
[1746022433157,3.0,1756.4,1755.5,0.72554872]
[1746022433504,1.635,1756.6,1755.5,0.05694872]
[1746022433856,1.635,1756.6,1755.6,6.686]
[1746022434018,4.6279,1756.9,1755.7,18.88893363]
[1746022434206,1.6279,1756.9,1755.8,0.55]
[1746022434407,1.6279,1756.9,1755.9,0.05692077]
[1746022434930,1.6279,1756.9,1755.9,0.41761285]
[1746022435138,2.06528552,1756.9,1755.9,0.41761285]
[1746022435514,2.06528552,1756.9,1756.0,6.686]
[1746022435732,2.06528552,1756.9,1756.0,6.7429192]
[1746022435935,17.07673483,1756.9,1756.0,6.686]
[1746022436141,3.0,1756.8,1756.0,6.686]
[1746022436343,6.3194591,1756.6,1755.6,3.78595007]
[1746022436508,1.6515,1756.7,1755.8,6.686]
[1746022436708,1.6515,1756.7,1755.9,0.05692735]
[1746022436967,2.08888552,1756.9,1755.9,0.73122009]
[1746022437292,5.08888552,1756.9,1755.9,0.73122009]
[1746022437487,5.69221886,1756.8,1755.9,0.73122009]
[1746022437653,17.15750222,1756.9,1755.9,0.67429274]
[1746022437854,0.31326548,1756.8,1756.0,0.05693003]
[1746022438698,0.31326548,1756.8,1756.1,0.55]
[1746022438997,0.43738552,1756.9,1755.9,0.67429274]
[1746022438998,0.43738552,1756.9,1756.2,18.88891278]
[1746022439201,3.0,1757.1,1756.3,6.686]
[1746022439355,3.0,1757.1,1756.3,6.74291518]
[1746022439759,0.31343643,1757.0,1756.3,6.686]
[1746022440077,0.31343643,1757.0,1756.4,0.6686]
[1746022440457,0.74581006,1757.0,1756.4,0.6686]
[1746022440706,0.31343643,1756.9,1756.4,0.6686]
[1746022441809,0.31343643,1757.0,1756.4,0.6686]
[1746022442507,3.31343643,1757.0,1756.4,0.6686]
[1746022442915,0.31343643,1756.9,1756.4,0.6686]
[1746022443077,0.31343643,1756.9,1756.4,0.72551729]
[1746022443280,0.31343643,1756.9,1756.4,0.6686]
[1746022443674,0.43853939,1757.0,1756.4,0.6686]
[1746022443915,3.0,1757.1,1756.4,0.6686]
[1746022444285,3.0,1757.1,1756.5,0.05691234]
[1746022444687,0.31331953,1757.0,1756.4,0.72551167]
[1746022445803,0.4264689,1757.1,1756.4,0.72551167]
[1746022446002,1.5206,1757.2,1756.4,0.72551167]
[1746022446202,1.5206,1757.2,1756.4,0.6686]
[1746022446391,3.0,1757.1,1756.4,0.72550443]
[1746022448410,3.0,1757.3,1756.4,0.72550443]
[1746022448615,3.4198802,1757.3,1756.4,0.72550443]
[1746022448818,4.54755413,1757.3,1756.4,0.72550443]
[1746022449734,3.4198802,1757.3,1756.4,0.72550443]
[1746022450893,0.55,1757.2,1756.4,0.72550443]
[1746022451188,3.0,1757.0,1756.5,6.618]
[1746022452307,6.3194591,1756.8,1756.5,6.618]
[1746022452511,3.0,1756.7,1756.5,6.618]
[1746022452723,1.6576,1756.6,1756.5,6.618]
[1746022452919,10.81617566,1756.6,1756.5,6.618]
[1746022453102,11.36617566,1756.6,1756.5,6.618]
[1746022453515,5.98651665,1756.6,1756.5,6.618]
[1746022453728,5.69354015,1756.4,1756.2,18.832]
[1746022453900,9.32136596,1756.3,1756.2,18.832]
[1746022454091,3.0,1756.2,1756.1,6.618]
[1746022455505,3.42667796,1756.2,1756.1,6.618]
[1746022456825,3.73954114,1756.2,1756.1,6.618]
[1746022457611,3.42667796,1756.2,1756.1,6.618]
[1746022458866,6.32136596,1756.5,1756.1,7.2798]
[1746022459035,3.31284257,1756.4,1756.1,6.618]
[1746022459216,6.32136596,1756.3,1756.1,6.618]
[1746022459648,1.6369,1756.2,1756.1,6.618]
[1746022460145,7.88101228,1756.2,1756.1,6.618]
[1746022460348,5.1869,1756.2,1756.1,6.618]
[1746022460653,11.50826596,1756.2,1756.1,6.618]
[1746022460818,11.82100881,1756.2,1756.1,6.618]
[1746022461015,3.31274285,1756.2,1756.1,6.618]
[1746022461266,0.31274285,1756.2,1756.1,6.618]
[1746022461834,0.43377392,1756.3,1756.1,6.618]
[1746022462146,6.32136596,1756.5,1756.1,7.2798]
[1746022462344,6.32136596,1756.7,1756.1,7.2798]
[1746022462656,3.31319256,1756.6,1756.1,7.2798]
[1746022463735,0.31319256,1756.5,1756.1,7.2798]
[1746022464964,0.31319256,1756.5,1756.2,0.05693044]
[1746022465129,0.31319256,1756.5,1756.2,0.79060348]
[1746022465326,0.31319256,1756.5,1756.2,0.73367304]
[1746022465961,0.31319256,1756.6,1756.2,0.73367304]
[1746022466233,3.0,1756.5,1756.1,6.618]
[1746022466765,3.0,1756.3,1756.1,6.618]
[1746022467128,9.32136596,1756.2,1756.1,6.618]
[1746022468259,3.73120949,1756.2,1756.1,6.618]
[1746022468465,10.05257545,1756.2,1756.1,6.618]
[1746022469751,11.057833,1756.2,1756.1,6.618]
[1746022470138,11.057833,1756.2,1755.7,6.62]
[1746022470338,10.05257545,1756.2,1755.7,6.62]
[1746022470541,0.31347043,1756.1,1755.7,6.62]
[1746022472565,0.31347043,1756.1,1755.8,0.05694634]
[1746022472858,0.31347043,1756.1,1755.7,6.62]
[1746022473066,0.31347043,1756.1,1755.8,0.05694637]
[1746022473660,0.31347043,1756.1,1755.7,6.62]
[1746022473839,0.31347043,1756.1,1755.8,0.662]
[1746022474729,0.31347043,1756.1,1755.8,0.71893829]
[1746022475061,0.31347043,1756.1,1755.8,0.662]
[1746022475561,6.32136596,1756.4,1755.8,0.662]
[1746022475767,3.0,1756.3,1755.7,6.62]
[1746022475928,3.31347043,1756.5,1755.8,0.0569374]
[1746022476265,0.31347043,1756.5,1755.8,0.0569374]
[1746022476971,0.31347043,1756.6,1755.8,0.0569374]
[1746022477153,0.31347043,1756.6,1755.8,0.72463114]
[1746022477351,0.31347043,1756.6,1755.9,0.55]
[1746022477670,3.75853218,1757.1,1756.1,0.55]
[1746022477827,3.75853218,1757.1,1756.3,3.55]
[1746022478029,3.75853218,1757.1,1756.4,18.8899081]
[1746022478238,3.75853218,1757.1,1756.5,1.88899081]
[1746022479473,0.43202972,1757.3,1756.5,1.94590468]
[1746022479678,6.32136596,1757.4,1756.5,1.94590468]
[1746022479890,3.0,1757.1,1756.5,1.88899081]
[1746022480044,3.0,1757.1,1756.5,1.94590645]
[1746022480803,1.664,1757.1,1756.5,1.88899081]
[1746022481090,3.0,1757.2,1756.5,1.94590864]
[1746022481292,3.0,1757.2,1756.5,1.88899081]
[1746022481772,0.42188596,1757.3,1756.6,0.05691048]
[1746022481948,3.0,1757.4,1756.7,6.562]
[1746022482150,3.0,1757.4,1756.8,0.6562]
[1746022483983,3.42748595,1757.4,1756.8,0.6562]
[1746022485284,1.08370087,1757.7,1756.9,0.05690519]
[1746022485483,1.5214,1757.9,1756.9,0.05690519]
[1746022485647,1.57847057,1757.9,1756.8,0.71309711]
[1746022485852,1.5214,1757.9,1756.8,0.71309711]
[1746022486097,4.5214,1757.9,1756.8,0.71309711]
[1746022486251,4.95821261,1757.9,1756.8,0.71309711]
[1746022486674,3.43681261,1757.9,1756.8,0.71309711]
[1746022486888,3.0,1757.7,1756.8,0.71309711]
[1746022487487,3.43681261,1757.9,1756.8,0.71309711]
[1746022487852,3.43681261,1757.9,1756.8,3.71309711]
[1746022488267,3.43681261,1757.9,1756.8,0.71309711]
[1746022488868,3.43681261,1757.9,1756.8,3.71309711]
[1746022489068,3.43681261,1757.9,1756.9,0.37130971]
[1746022489283,3.43681261,1757.9,1757.0,0.05689052]
[1746022489554,0.31460382,1757.8,1757.0,0.05689052]
[1746022489893,3.0,1757.7,1756.9,0.42820027]
[1746022490079,3.0,1757.7,1756.9,0.05689056]
[1746022490276,0.31460382,1757.6,1756.9,0.05689056]
[1746022490478,0.31460382,1757.6,1756.8,0.71309545]
[1746022490989,0.31460382,1757.5,1756.8,0.71309545]
[1746022491693,0.31460382,1757.4,1756.8,0.71309545]
[1746022492883,3.0,1757.5,1756.8,0.6562]
[1746022493313,3.9321366,1757.5,1756.7,6.562]
[1746022493713,3.9321366,1757.5,1756.8,0.05689545]
[1746022493917,3.9321366,1757.5,1756.7,6.562]
[1746022494226,0.31466919,1757.4,1756.7,6.562]
[1746022494712,0.31466919,1757.4,1756.8,0.05689545]
[1746022495024,0.31466919,1757.4,1756.8,0.71878499]
[1746022495322,0.31466919,1757.3,1756.8,0.71878499]
[1746022496101,0.31466919,1757.8,1756.8,0.71878499]
[1746022496525,6.63603515,1757.8,1756.8,0.71878499]
[1746022496825,0.31466919,1757.7,1756.8,0.71878499]
[1746022497051,0.31466919,1757.7,1756.8,0.66188954]
[1746022497623,0.31466919,1757.6,1756.8,0.66188954]
[1746022498189,0.31466919,1757.6,1756.9,18.821]
[1746022498389,0.31466919,1757.5,1757.0,1.8821]
[1746022499029,0.31466919,1757.4,1757.0,1.8821]
[1746022499604,0.31466919,1757.4,1757.0,1.93899925]
[1746022500010,0.31466919,1757.3,1757.0,1.93899925]
[1746022500328,0.31466919,1757.3,1757.0,1.8821]
[1746022500530,3.31466919,1757.3,1756.9,18.821]
[1746022500693,3.0,1757.3,1756.9,18.821]
[1746022501548,3.0,1757.1,1756.9,18.821]
[1746022502135,9.63641286,1757.0,1756.9,18.821]
[1746022502632,3.0,1756.9,1756.7,6.562]
[1746022502836,0.3150469,1757.0,1756.7,6.562]
[1746022503043,0.3150469,1756.8,1756.7,6.562]
[1746022503920,0.3150469,1756.8,1756.7,7.2182]
[1746022504106,3.3150469,1756.8,1756.7,6.562]
[1746022504508,11.21048504,1756.8,1756.7,6.562]
[1746022504738,11.15341447,1756.8,1756.7,6.562]
[1746022505032,5.4612469,1756.8,1756.3,6.499]
[1746022505212,3.0,1756.6,1756.3,6.499]
[1746022505736,0.3150469,1756.5,1756.3,6.499]
[1746022506610,0.3150469,1756.8,1756.3,6.499]
[1746022506816,3.0,1756.7,1756.3,6.499]
[1746022507835,0.3150469,1756.6,1756.3,6.499]
[1746022508035,3.0,1756.5,1756.3,6.499]
[1746022508398,6.32136596,1756.4,1756.3,6.499]
[1746022508601,9.63641286,1756.4,1756.3,6.499]
[1746022509044,9.63641286,1756.4,1756.0,3.78595007]
[1746022509203,3.96364129,1756.3,1756.0,3.78595007]
[1746022509540,0.3150469,1756.2,1756.0,3.78595007]
[1746022510100,8.27441286,1756.2,1756.0,3.78595007]
[1746022510304,3.0,1756.1,1756.0,3.78595007]
[1746022510525,3.74064648,1756.1,1756.0,3.78595007]
[1746022510837,4.46160968,1756.1,1756.0,3.78595007]
[1746022511036,3.74064648,1756.1,1756.0,3.78595007]
[1746022511246,0.3150469,1756.1,1756.0,3.78595007]
[1746022511837,0.3150469,1756.1,1755.9,6.5]
[1746022512001,3.3150469,1756.1,1755.9,6.5]
[1746022512211,15.07319735,1756.0,1755.9,6.5]
[1746022512468,9.63641286,1756.0,1755.6,3.78595007]
[1746022512762,1.6315,1755.9,1755.6,3.78595007]
[1746022513111,3.0,1755.7,1755.6,3.78595007]
[1746022513311,3.3150469,1755.7,1755.6,3.78595007]
[1746022513745,0.3150469,1755.7,1755.6,3.78595007]
[1746022514249,3.3150469,1755.7,1755.6,3.78595007]
[1746022514415,4.27868819,1755.7,1755.6,3.78595007]
[1746022515848,4.27868819,1755.7,1755.5,6.502]
[1746022516054,9.97448051,1755.7,1755.5,6.502]
[1746022516348,4.27868819,1755.7,1755.5,6.502]
[1746022516750,0.3150469,1755.6,1755.5,6.502]
[1746022517649,10.18641286,1755.6,1755.5,5.19234817]
[1746022518217,10.18641286,1755.6,1755.2,3.78595007]
[1746022518218,10.31358114,1755.5,1755.2,3.78595007]
[1746022518425,9.32136596,1755.3,1755.2,0.28492205]
[1746022518650,15.62546837,1755.3,1755.2,0.28492205]
[1746022518858,15.5683978,1755.3,1755.2,0.28492205]
[1746022519060,9.87136596,1755.3,1755.2,0.28492205]
[1746022519234,0.55,1755.2,1755.1,6.504]
[1746022519593,0.3150469,1755.2,1755.1,6.504]
[1746022521043,6.74605902,1755.6,1755.1,6.504]
[1746022521239,3.0,1755.5,1755.1,7.1544]
[1746022521631,1.6132,1755.7,1755.1,7.1544]
[1746022522028,7.92736596,1755.3,1754.9,0.28492205]
[1746022522233,3.0,1755.0,1754.9,0.28492205]
[1746022522557,3.0,1755.2,1754.9,0.28492205]
[1746022522931,3.0,1755.0,1754.9,0.28492205]
[1746022523127,3.55,1755.0,1754.9,0.28492205]
[1746022523377,4.85641193,1755.0,1754.9,0.28492205]
[1746022523742,5.28932577,1755.0,1754.7,6.505]
[1746022523942,3.74648212,1755.0,1754.7,6.505]
[1746022524143,0.74648212,1755.0,1754.7,6.505]
[1746022524589,0.43291384,1755.0,1754.7,6.505]
[1746022524777,3.60707057,1755.2,1754.7,6.505]
[1746022525681,0.31347439,1755.1,1754.7,6.505]
[1746022525856,0.73932499,1755.1,1754.7,6.505]
[1746022526056,4.606,1755.3,1754.7,7.1555]
[1746022526273,7.92696596,1755.5,1754.7,7.1555]
[1746022526580,3.0,1755.4,1754.7,7.1555]
[1746022527282,3.0,1755.2,1754.7,6.505]
[1746022527459,3.49491576,1755.2,1754.7,6.505]
[1746022527852,3.43784519,1755.2,1754.7,6.505]
[1746022528081,3.49491576,1755.2,1754.7,6.505]
[1746022528287,3.43784519,1755.2,1754.7,6.505]
[1746022528642,3.43784519,1755.2,1754.7,7.1555]
[1746022528881,0.43784519,1755.2,1754.7,7.1555]
[1746022529078,10.92696596,1755.5,1754.7,7.1555]
[1746022529386,3.92105719,1755.4,1754.7,7.1555]
[1746022530183,3.0,1755.2,1754.7,7.1555]
[1746022530348,3.43895897,1755.2,1754.7,7.1555]
[1746022530552,4.4595648,1755.2,1754.7,6.505]
[1746022530984,4.40249423,1755.2,1754.7,6.505]
[1746022531510,3.43895897,1755.2,1754.7,6.505]
[1746022532065,10.92696596,1755.5,1754.7,6.505]
[1746022532367,10.98403653,1755.5,1754.7,6.505]
[1746022532991,0.31398958,1755.4,1754.7,6.505]
[1746022534678,6.74576008,1755.5,1754.7,6.505]
[1746022534881,0.67457601,1755.4,1754.7,7.1555]
[1746022535274,7.14368901,1755.8,1754.7,7.1555]
[1746022535275,0.48638639,1756.3,1754.8,0.60697159]
[1746022535498,0.05707057,1756.4,1754.8,3.60697159]
[1746022535697,0.42823736,1756.5,1754.8,3.60697159]
[1746022535698,3.0,1755.7,1754.8,0.05695335]
[1746022535903,3.0,1755.9,1754.8,0.60695335]
[1746022536709,3.0,1755.9,1754.8,0.05695335]
[1746022536870,3.9321366,1755.9,1754.8,0.77819869]
[1746022537470,3.0,1755.7,1754.8,0.77819869]
[1746022538178,3.0,1755.5,1754.8,0.72124534]
[1746022539111,4.6491,1755.7,1754.9,0.05696688]
[1746022539415,3.0,1755.5,1754.8,0.72124534]
[1746022539705,4.37331894,1755.5,1754.8,0.72124534]
[1746022539906,4.37331894,1755.5,1754.9,3.05844669]
[1746022540907,3.0,1755.5,1754.9,3.05844669]
[1746022541207,4.6491,1755.7,1754.9,3.05844669]
[1746022542156,0.31402789,1755.6,1754.9,3.05844669]
[1746022542570,0.31402789,1755.6,1754.8,0.72124534]
[1746022543068,4.6491,1755.7,1754.8,0.72124534]
[1746022543266,0.46491,1755.6,1754.8,0.72124534]
[1746022543909,2.96491,1755.7,1754.8,0.72124534]
[1746022545015,6.32136596,1755.4,1754.8,0.72124534]
[1746022545948,3.0,1755.3,1754.8,0.72124534]
[1746022546908,3.0,1755.3,1754.7,6.505]
[1746022548213,4.96095861,1755.5,1754.7,6.505]
[1746022548415,5.01802918,1755.5,1754.7,6.505]
[1746022548913,0.31458641,1755.4,1754.7,6.505]
[1746022549760,0.31458641,1755.4,1754.8,0.05697371]
[1746022549921,0.31458641,1755.4,1754.8,0.65619737]
[1746022550077,0.42435861,1755.5,1754.8,0.65619737]
[1746022550278,9.32136596,1755.7,1754.8,0.65619737]
[1746022550478,15.07438374,1755.7,1754.8,0.65619737]
[1746022550679,15.01731317,1755.7,1754.8,0.65619737]
[1746022550878,0.37156602,1755.6,1754.8,0.65619737]
[1746022551107,3.0,1755.5,1754.8,0.65619737]
[1746022551321,3.92156602,1755.6,1754.8,0.65619737]
[1746022551474,3.37156602,1755.6,1754.8,0.65619737]
[1746022551823,0.31449545,1755.5,1754.8,0.65619737]
[1746022552624,3.0,1755.4,1754.8,0.65619737]
[1746022553740,0.31449545,1755.3,1754.9,0.05697556]
[1746022554034,0.31449545,1755.3,1754.8,0.65619737]
[1746022554599,3.0,1755.6,1754.8,0.65619737]
[1746022555200,4.62267057,1755.6,1754.8,0.65619737]
[1746022555418,0.31523511,1755.5,1754.8,0.65619737]
[1746022555740,0.74841825,1755.5,1754.8,0.65619737]
[1746022555943,0.31523511,1755.5,1754.8,0.65619737]
[1746022556307,0.31523511,1755.4,1754.8,0.65619737]
[1746022557047,0.31523511,1755.4,1752.6,22.41731446]
[1746022557048,3.0,1755.0,1753.8,6.07100369]
[1746022557298,9.32136596,1754.7,1753.9,6.444]
[1746022557420,3.0,1754.4,1753.9,6.444]
[1746022557761,3.0,1754.5,1753.9,6.444]
[1746022557969,3.0,1754.5,1754.1,5.44724155]
[1746022558106,0.31523511,1754.6,1754.1,5.44724155]
[1746022558309,0.31523511,1754.6,1754.2,6.444]
[1746022558510,0.41842239,1754.6,1754.2,6.444]
[1746022558710,10.31421133,1754.9,1754.1,5.44724155]
[1746022558949,10.31421133,1754.9,1754.2,6.98872416]
[1746022558950,4.61577057,1754.9,1754.2,6.98872416]
[1746022559305,0.31458196,1754.8,1754.2,6.98872416]
[1746022560262,4.61577057,1754.9,1754.2,6.98872416]
[1746022560427,0.60707057,1754.8,1754.2,6.98872416]
[1746022561255,0.31475726,1754.7,1754.2,6.98872416]
[1746022561450,0.31475726,1754.7,1754.2,7.04572397]
[1746022561954,0.31475726,1754.7,1754.3,0.7045724]
[1746022562251,6.32136596,1755.0,1754.3,0.7045724]
[1746022562619,3.0,1754.9,1754.3,0.7045724]
[1746022562821,0.55,1755.1,1754.3,0.7045724]
[1746022563024,0.4369647,1755.1,1754.3,0.7045724]
[1746022563237,7.93556596,1755.3,1754.3,0.7045724]
[1746022563562,7.99263653,1755.3,1754.4,0.05698194]
[1746022563740,6.37843653,1755.3,1754.4,0.05698194]
[1746022564065,0.05707057,1755.3,1754.4,0.05698194]
[1746022564362,0.42615145,1755.3,1754.4,18.90298194]
[1746022564508,6.32136596,1755.7,1754.5,0.55]
[1746022564898,6.32136596,1755.7,1754.6,0.05696571]
[1746022564899,3.0,1755.6,1754.6,0.05696571]
[1746022565063,3.0,1755.6,1754.7,6.385]
[1746022565355,0.31489327,1755.6,1754.7,6.385]
[1746022565564,3.31489327,1755.6,1754.8,0.05696925]
[1746022565712,0.31489327,1755.6,1754.8,0.05696925]
[1746022565913,0.31489327,1755.6,1754.8,0.70116617]
[1746022566214,6.32136596,1756.0,1754.8,0.70116617]
[1746022566463,3.0,1755.9,1754.8,0.70116617]
[1746022566639,0.42036775,1756.0,1754.8,3.70116617]
[1746022566840,0.05707057,1756.1,1754.8,3.70116617]
[1746022567157,0.31500556,1755.9,1754.9,0.37011662]
[1746022567363,0.31500556,1755.9,1755.0,0.05695125]
[1746022568010,9.87274976,1756.3,1755.0,0.05695125]
[1746022568360,2.84940824,1756.4,1755.1,0.55]
[1746022568525,0.05707057,1756.6,1755.3,3.55]
[1746022568726,0.4310783,1756.6,1755.4,19.25693727]
[1746022568948,0.31498849,1756.5,1755.5,0.55]
[1746022569157,0.31498849,1756.5,1755.7,0.55]
[1746022569454,0.31498849,1756.5,1755.8,6.44192799]
[1746022569660,0.31498849,1756.5,1755.9,0.6441928]
[1746022570011,6.32136596,1757.0,1756.0,0.05692808]
[1746022570330,3.0,1756.9,1756.0,0.05692808]
[1746022570516,0.42101038,1756.9,1756.0,0.05692808]
[1746022570723,4.20580824,1756.9,1755.9,0.70111608]
[1746022571361,6.32136596,1757.2,1756.0,0.55]
[1746022571566,6.32136596,1757.2,1756.1,0.05691866]
[1746022571731,1.20580824,1757.1,1756.1,0.05691866]
[1746022571935,7.20416306,1757.2,1756.1,0.05691866]
[1746022572252,9.29242856,1757.2,1756.1,0.05691866]
[1746022572513,3.0,1757.1,1756.1,0.05691866]
[1746022572656,4.20580824,1757.1,1756.1,0.05691866]
[1746022572838,1.20580824,1757.1,1756.1,0.05691866]
[1746022573382,3.0,1757.1,1756.1,0.05691866]
[1746022573978,3.0,1757.1,1756.0,0.48203111]
[1746022574129,0.55,1757.1,1756.0,0.48203111]
[1746022574621,3.0,1756.7,1756.0,0.42511161]
[1746022574843,6.94594213,1756.4,1755.8,6.385]
[1746022575060,3.05707057,1756.3,1755.8,6.385]
[1746022575257,3.0,1756.1,1755.8,6.385]
[1746022575623,3.0,1756.3,1755.8,6.385]
[1746022576060,3.0,1756.4,1755.8,6.385]
[1746022576261,3.0,1756.4,1755.9,0.6385]
[1746022576658,3.0,1756.2,1755.9,0.6385]
[1746022576982,3.0,1756.4,1755.9,0.6385]
[1746022577475,0.41821433,1756.5,1756.0,0.05694208]
[1746022577671,6.94594213,1756.4,1755.9,0.6385]
[1746022577871,6.94594213,1757.1,1756.0,0.05694226]
[1746022578071,6.94594213,1756.9,1755.9,0.6385]
[1746022578370,6.94594213,1756.7,1755.9,0.6385]
[1746022578669,3.0,1756.6,1755.9,0.6385]
[1746022578869,3.0,1756.2,1756.0,6.381]
[1746022579650,3.0,1756.2,1755.9,6.381]
[1746022579851,3.0,1756.0,1755.9,6.381]
[1746022580179,4.6282,1756.0,1755.5,6.381]
[1746022580337,4.6282,1756.0,1755.5,8.9036]
[1746022580534,3.0,1755.8,1755.5,6.381]
[1746022580763,0.55,1755.7,1755.5,6.381]
[1746022581363,3.0,1755.8,1755.5,6.381]
[1746022581558,3.0,1755.9,1755.5,6.381]
[1746022581759,0.55,1755.9,1755.5,6.381]
[1746022581986,0.42112951,1756.0,1755.5,8.9036]
[1746022582274,3.0,1756.1,1755.5,8.9036]
[1746022582692,0.55,1756.0,1755.5,6.381]
[1746022582887,0.55,1755.8,1755.5,6.381]
[1746022583041,3.55,1755.8,1755.5,6.381]
[1746022583440,4.6074,1755.9,1755.5,6.381]
[1746022583640,1.6074,1755.9,1755.5,6.381]
[1746022584070,0.43281329,1756.0,1755.5,8.9036]
[1746022584251,3.0,1756.1,1755.5,8.9036]
[1746022585794,3.43341245,1756.1,1755.5,8.9036]
[1746022586088,0.43341245,1756.1,1755.6,0.05695465]
[1746022586279,3.0,1756.1,1755.6,0.05695465]
[1746022586474,3.0,1756.1,1755.6,0.95301012]
[1746022586785,3.0,1756.1,1755.6,0.89605547]
[1746022588180,5.0,1756.2,1755.6,0.89605547]
[1746022588495,5.0,1756.2,1755.7,0.05694726]
[1746022588693,3.0,1756.1,1755.7,0.05694726]
[1746022588894,5.0,1756.2,1755.6,0.95299844]
[1746022590493,5.0,1756.2,1755.7,0.55]
[1746022590704,5.0,1756.2,1755.7,1.00029984]
[1746022590994,5.0,1756.2,1755.7,0.45029984]
[1746022591306,5.0,1756.2,1755.8,0.05693698]
[1746022591512,5.0,1756.2,1755.7,1.00029984]
[1746022591717,5.0,1756.2,1755.8,0.05693512]
[1746022593076,5.0,1756.2,1755.9,0.55]
[1746022593271,5.0,1756.2,1756.1,0.55]
[1746022593474,5.0,1756.2,1756.1,1.2374]
[1746022594611,5.0,1756.2,1756.1,0.6874]
[1746022594778,5.0,1756.2,1756.1,4.2374]
[1746022595208,4.6347,1757.4,1756.2,0.97374]
[1746022595422,5.05915239,1757.4,1756.3,0.05691199]
[1746022595709,10.7493808,1757.4,1756.2,1.45497603]
[1746022595916,4.07493808,1757.3,1756.2,0.42374]
[1746022596074,3.0,1757.1,1756.1,0.6874]
[1746022596275,5.05915239,1757.4,1756.1,0.6874]
[1746022596476,5.05915239,1757.4,1756.2,0.05692234]
[1746022596777,10.74949569,1757.4,1756.2,0.05692234]
[1746022597111,5.05915239,1757.4,1756.2,0.05692234]
[1746022597274,0.50591524,1757.3,1756.3,0.55]
[1746022597606,0.50591524,1757.3,1756.4,0.05691144]
[1746022597809,0.50591524,1757.3,1756.5,6.323]
[1746022598109,0.50591524,1757.3,1756.6,0.05691147]
[1746022598488,0.50591524,1757.3,1756.6,0.05691141]
[1746022598687,0.42445239,1757.4,1756.6,0.05691141]
[1746022598888,3.45724853,1757.5,1756.5,6.323]
[1746022599089,0.31468546,1757.4,1756.6,0.05691152]
[1746022599288,0.31468546,1757.4,1756.5,6.323]
[1746022599488,5.69141712,1757.1,1756.3,18.83]
[1746022599811,4.5073,1756.8,1756.4,6.323]
[1746022600515,1.5073,1756.8,1756.4,6.323]
[1746022601915,3.55,1756.9,1756.4,6.323]
[1746022602716,9.24201911,1756.9,1756.4,6.323]
[1746022602924,3.55,1756.9,1756.4,6.323]
[1746022603220,4.82667166,1756.9,1756.4,6.323]
[1746022604209,1.5142,1756.6,1756.4,6.323]
[1746022604595,1.93379088,1756.6,1756.4,6.323]